Cogmind - Beta 14 @@@ ROGUE MODE // 2024.12.30 @ 19:29:28 Player: Ty Result: Destroyed by L-31 Rogue with Katana Performance ------------- Evolutions (2) 1000 Regions Visited (3) 600 Robots Destroyed (30) 150 Value Destroyed (706) 706 Prototype IDs (0) 0 Alien Tech Used (0) 0 Bonus (0) 0 TOTAL SCORE: 2456 Bonus ------- None Cogmind --------- Core Integrity 0/550 Matter 54/300 Energy 100/100 System Corruption 0% Temperature Cool (0) Movement Core (350) Ox6 Location -8/Materials Parts ------- > --- POWER (1) -------- (None) > --- PROPULSION (4) --- (None) > --- UTILITY (4) ------ Large Storage Unit Signal Interpreter > --- WEAPON (2) ------- (None) > --- INVENTORY (15) --- Medium Storage Unit Visual Processing Unit Visual Processing Unit Sensor Array Peak State ------------ > --- POWER ------------ Light Ion Engine > --- PROPULSION ------- Aluminum Leg Aluminum Leg Aluminum Leg > --- UTILITY ---------- Large Storage Unit Signal Interpreter Transport Network Coupler Advanced Targeting Computer > --- WEAPON ----------- Light Assault Rifle Shotgun > --- INVENTORY -------- Light Ion Engine Light Ion Engine Medium Storage Unit Visual Processing Unit Visual Processing Unit Sensor Array Heavy EM Pulse Gun Small Laser Beam Cannon Grenade Launcher Datajack [Rating: 14] Favorites ----------- Power Light Ion Engine Engine Light Ion Engine Propulsion Aluminum Leg Leg Aluminum Leg Utility Transport Network Coupler Storage Large Storage Unit Processor Transport Network Coupler Weapon Light Assault Rifle Energy Gun Heavy EM Pulse Gun Energy Cannon Beam Cannon Ballistic Gun Light Assault Rifle Launcher Grenade Launcher Special Melee Weapon Datajack Build | -11 -10 -9 -8 ------- Run | Yrd Mat Mat Mat Slots Evolved 4 | . . 2 2 Power . | . . . . Propulsion 2 | . . 1 1 Utility 2 | . . 1 1 Weapon . | . . . . Parts Attached 45 | 7 10 18 10 Power 8 | 2 1 3 2 Engine 8 | 2 1 3 2 Core . | . . . . Reactor . | . . . . Propulsion 6 | 2 1 3 . Treads . | . . . . Leg 6 | 2 1 3 . Wheel . | . . . . Hover . | . . . . Flight . | . . . . Utility 6 | 1 2 2 1 Device . | . . . . Storage 3 | 1 1 1 . Processor 3 | . 1 1 1 Hackware . | . . . . Protection . | . . . . Artifact . | . . . . Weapon 25 | 2 6 10 7 Energy Gun 7 | 2 2 1 2 Energy Cannon 4 | . 3 . 1 Ballistic Gun 8 | . 1 5 2 Ballistic Cannon . | . . . . Launcher 1 | . . . 1 Special Weapon . | . . . . Impact Weapon . | . . . . Slashing Weapon . | . . . . Piercing Weapon . | . . . . Special Melee Weapon 5 | . . 4 1 Unidentified Prototypes . | . . . . Parts Lost 17 | . 1 2 14 Power 3 | . . . 3 Propulsion 5 | . . 2 3 Utility 1 | . . . 1 Weapon 8 | . 1 . 7 Highest Loss Streak 13 | . 1 1 13 To Critical Strikes 1 | . . . 1 Average Slot Usage (%) 85 | . 89 87 67 Engine 11 | . 13 11 6 Leg 22 | . 27 21 14 Storage 12 | . 16 11 9 Processor 17 | . 3 22 23 Energy Gun 4 | . 11 2 . Energy Cannon 4 | . 11 . 5 Ballistic Gun 11 | . 3 16 6 Special Melee Weapon 1 | . . 2 1 Peak Build Rating 14 | 6 8 11 14 Average Rating 8 | 4 6 9 10 On Entrance 6 | . 6 8 10 Naked Turns . | . . . . Heaviest Build 29 | 13 22 29 29 Greatest Support 30 | 20 20 30 30 Greatest Overweight (x) 7 | 3 1 2 7 Average Overweight (x) . | . . . . Largest Inventory Capacity 15 | 8 10 15 15 Average Capacity 11 | 7 8 12 15 Most Carried 12 | 6 10 12 12 Average Carried 8 | 2 7 9 9 Final Capacity 15 | 8 10 15 15 Final Carried 11 | 4 9 11 4 Class Distribution -------------------- 72% | Scavenger-Mutant 27% | Mutant Dominant Class ---------------- Mutant | -10/Materials Scavenger-Mutant | -9/Materials Scavenger-Mutant | -8/Materials Resources | -11 -10 -9 -8 ----------- Run | Yrd Mat Mat Mat Matter Collected 660 | 82 185 343 50 Remotely . | . . . . Salvage Created 827 | . 241 352 234 Parts 74 | . 18 37 19 Haulers Intercepted 1 | . 1 . . Recyclers Shooed 2 | . . 1 1 Parts Field Recycled . | . . . . Retrieved Matter . | . . . . Parts Self-Destructed . | . . . . Prevented . | . . . . Kills | -11 -10 -9 -8 ------- Run | Yrd Mat Mat Mat Combat Hostiles Destroyed 21 | . 5 12 4 Guns 16 | . 3 12 1 Cannons 1 | . 1 . . AOE 4 | . 1 . 3 Classes Destroyed 9 | . 4 3 2 Worker 2 | . . 1 1 Tunneler 1 | . . . 1 Hauler 1 | . 1 . . Recycler 1 | . . . 1 Watcher 4 | . 2 1 1 Swarmer 10 | . 3 7 . Grunt 6 | . 2 1 3 Duelist 1 | . . 1 . Sentry 4 | . . 3 1 Best Kill Streak 7 | . 3 5 7 Combat Bots Only 4 | . 3 4 3 Max Kills in Single Turn 3 | . 1 2 3 Gunslinging 1 | . . 1 . Exploded 1 | . 1 . 1 Melee . | . . . . Uniques/NPCs Destroyed . | . . . . Combat | -11 -10 -9 -8 -------- Run | Yrd Mat Mat Mat Hostile Shots Fired 209 | . 22 74 113 Missed 53 | . 4 22 27 Damage Taken 2397 | . 216 746 1435 Core 769 | . 28 170 571 Absorbed by Shields . | . . . . Core Remaining (%) 81 | 100 88 57 . Volleys Fired 111 | . 31 55 25 Largest 2 | . 2 2 2 Hottest 110 | . 110 65 83 Shots Fired 202 | . 59 108 35 Gun 151 | . 28 108 15 Cannon 42 | . 31 . 11 Launcher 9 | . . . 9 Special . | . . . . Kinetic 112 | . 8 95 9 Thermal 64 | . 48 . 16 Explosive 9 | . . . 9 Electromagnetic 17 | . 3 13 1 Robot Hit Streak 6 | . 6 6 5 Robot Miss Streak 6 | . 4 5 6 Penetration Max . | . . . . Secondary Targets 1 | . . 1 . Max Gunslinging Chain 1 | . . 1 . Shots Hit Robots 126 | . 26 76 24 Core Hits 61 | . 8 31 22 Critical Kills . | . . . . Critical Parts Destroyed 1 | . . 1 . Critical Strikes 3 | . . 3 . Destroy 1 | . . 1 . Corrupt 2 | . . 2 . Melee Attacks 11 | . . 11 . Impact . | . . . . Slashing . | . . . . Piercing . | . . . . Sneak Attacks 8 | . . 8 . Combat Hostiles . | . . . . Follow-up Attacks . | . . . . Damage Inflicted 2188 | . 485 785 918 Guns 1066 | . 130 777 159 Cannons 382 | . 258 . 124 Explosions 732 | . 97 . 635 Melee . | . . . . Ramming 8 | . . 8 . Kinetic 811 | . 31 676 104 Thermal 606 | . 427 . 179 Explosive 635 | . . . 635 Electromagnetic 128 | . 27 101 . Impact . | . . . . Slashing . | . . . . Piercing . | . . . . Highest Corruption . | . . . . Average Corruption . | . . . . Corruption Purged . | . . . . Corruption Blocked . | . . . . Overload Shots . | . . . . Overflow Damage 54 | . 39 . 15 Projectiles 28 | . 28 . . Explosions 26 | . 11 . 15 Melee . | . . . . Knockbacks . | . . . . Impact . | . . . . Kinetic . | . . . . Secondary . | . . . . Self-Inflicted Damage 130 | . 53 . 77 Shots 3 | . 1 . 2 Rammed . | . . . . Targets Rammed 1 | . . 1 . Kicked 1 | . . 1 . Crushed . | . . . . Highest Temperature 330 | . 330 53 42 Average Temperature 54 | . 75 17 14 Received Heat Transfer 438 | . 30 147 261 Effects 1 | . 1 . . Short Circuit 1 | . 1 . . Siege Activations . | . . . . Robots Corrupted . | . . . . Combat Hostiles . | . . . . Parts Fried . | . . . . Impact Corruptions . | . . . . Robots Melted . | . . . . Combat Hostiles . | . . . . Parts Melted 1 | . 1 . . Heat Transferred 1187 | . 803 . 384 Parts Sabotaged . | . . . . Parts Stolen . | . . . . Parts Stripped . | . . . . Power Chain Reactions 1 | . 1 . . Alert | -11 -10 -9 -8 ------- Run | Yrd Mat Mat Mat Peak Influence 305 | . 198 305 181 Initial 85 | . . 5 85 Average 135 | . 95 166 124 Maximum Alert Level 1 | . . 1 . Low Security (%) 70 | 100 100 48 100 Level 1 29 | . . 51 . Level 2 . | . . . . Level 3 . | . . . . Level 4 . | . . . . Level 5 . | . . . . High Security . | . . . . Max Security . | . . . . Squads Dispatched 4 | . . 2 2 Investigation 1 | . . 1 . Extermination . | . . . . Reinforcement 2 | . . 1 1 Assault . | . . . . Garrison 1 | . . . 1 Intercept . | . . . . Searches Triggered . | . . . . Construction Impeded . | . . . . Haulers Reinforced . | . . . . Active Scanning Responses . | . . . . Cargo Convoy Interrupts . | . . . . Stealth | -11 -10 -9 -8 --------- Run | Yrd Mat Mat Mat Distress Signals 2 | . . . 2 Communications Jammed . | . . . . Distress Signals . | . . . . Times Spotted 51 | . 10 26 15 Peak Tracking Total 8 | . 3 5 8 Tactical Retreats 6 | . . 6 . Traps | -11 -10 -9 -8 ------- Run | Yrd Mat Mat Mat Traps Triggered 1 | . 1 . . Indirectly . | . . . . Trap Hack Attempts . | . . . . Triggered . | . . . . Disarmed . | . . . . Reprogrammed . | . . . . Reused . | . . . . Traps Extracted . | . . . . Installed . | . . . . Triggered . | . . . . Machines | -11 -10 -9 -8 ---------- Run | Yrd Mat Mat Mat Machines Disabled 3 | . 2 1 . Max in Single Turn 1 | . 1 1 . Machines Repaired . | . . . . Machines Dismantled . | . . . . Machines Sabotaged . | . . . . Overloaded Fab Kills . | . . . . Hacking | -11 -10 -9 -8 --------- Run | Yrd Mat Mat Mat Machines Accessed . | . . . . Terminals . | . . . . Fabricators . | . . . . Repair Stations . | . . . . Recycling Units . | . . . . Scanalyzers . | . . . . Garrison Access . | . . . . Total Hacks . | . . . . Successful . | . . . . Failed . | . . . . Catastrophic . | . . . . Database Lockouts . | . . . . Manual . | . . . . Terminals . | . . . . Fabricators . | . . . . Repair Stations . | . . . . Recycling Units . | . . . . Scanalyzers . | . . . . Garrison Access . | . . . . Terminal Hacks . | . . . . Fabricator Hacks . | . . . . Repair Station Hacks . | . . . . Recycling Unit Hacks . | . . . . Scanalyzer . | . . . . Garrison Access Hacks . | . . . . Unauthorized Hacks . | . . . . Terminals . | . . . . Fabricators . | . . . . Repair Stations . | . . . . Recycling Units . | . . . . Scanalyzers . | . . . . Garrison Access . | . . . . Data Cores Recovered . | . . . . Used . | . . . . Hacking Detections . | . . . . Full Trace Events . | . . . . Feedback Events . | . . . . Feedback Blocked . | . . . . Robot Schematics Acquired . | . . . . Robots Built . | . . . . Authchips . | . . . . Time . | . . . . Total Robot Build Rating . | . . . . Part Schematics Acquired . | . . . . Parts Built . | . . . . Authchips . | . . . . Time . | . . . . Total Part Build Rating . | . . . . Parts Repaired . | . . . . Time . | . . . . Parts Recycled . | . . . . Recycled Matter . | . . . . Retrieved Matter . | . . . . Retrieved Components . | . . . . Parts Scanalyzed . | . . . . Part Schematics Acquired . | . . . . Parts Damaged . | . . . . Bothacking | -11 -10 -9 -8 ------------ Run | Yrd Mat Mat Mat Used RIF Installer . | . . . . Robots Hacked 4 | . . 4 . Non-combat 4 | . . 4 . Combat . | . . . . Robot Hacks Applied 4 | . . 4 . no_distress 3 | . . 3 . find_recycling 1 | . . 1 . Relay Couplers Released . | . . . . Fabnet Peak Effective % . | . . . . Robots Rewired . | . . . . Allies Hacked . | . . . . Hacks Repelled . | . . . . Allies | -11 -10 -9 -8 -------- Run | Yrd Mat Mat Mat Total Allies . | . . . . Largest Group . | . . . . Highest-Rated Group . | . . . . Highest-Rated Ally . | . . . . Total Orders . | . . . . Ally Attacks . | . . . . Total Damage . | . . . . Kills . | . . . . Allies Corrupted . | . . . . Allies Melted . | . . . . Intel | -11 -10 -9 -8 ------- Run | Yrd Mat Mat Mat Robot Analysis Total . | . . . . Derelict Logs Recovered . | . . . . Drone Launches . | . . . . Drone Recoveries . | . . . . Exploration | -11 -10 -9 -8 ------------- Run | Yrd Mat Mat Mat Turns Passed 1679 | 63 449 941 226 Spaces Moved 830 | 33 253 458 86 Core 12 | 8 . . 4 Treads . | . . . . Legs 818 | 25 253 458 82 Wheels . | . . . . Hover . | . . . . Flight . | . . . . Fastest Speed 50 | 50 120 120 120 Average Speed 144 | 135 128 148 176 Slowest Speed 400 | 200 190 260 400 Overloaded Moves . | . . . . Propulsion Burnouts . | . . . . Robots Hopped . | . . . . Cave-ins Triggered . | . . . . Exploration Rate (%) 29 | 3 41 55 17 Regions Visited 3 Branch Regions . Pre-discovered Areas . | . . . . Known Exits Taken 1 | . . 1 . Unknown Exits Taken 2 | 1 1 . . Scrap Searched . | . . . . Spaces Dug . | . . . . Terrain Destroyed 43 | . 4 . 39 Melee . | . . . . Projectile . | . . . . AOE 43 | . 4 . 39 Terrain Rammed . | . . . . Walls Destroyed . | . . . . Machines Disabled . | . . . . Actions | -11 -10 -9 -8 --------- Run | Yrd Mat Mat Mat Total 1105 | 51 318 613 123 Wait 69 | . 12 56 1 Move 827 | 32 252 457 86 Hop . | . . . . Pick Up 31 | 11 10 9 1 Fast Attach 3 | . 3 . . Attach 21 | 6 3 4 8 Detach . | . . . . Swap 21 | 1 4 14 2 Drop 10 | 1 3 6 . Fire 111 | . 31 55 25 Melee 11 | . . 11 . Ram . | . . . . Kick 1 | . . 1 . Crush . | . . . . Escape Stasis . | . . . . Rewire . | . . . . Trap . | . . . . Miscellaneous . | . . . . Route ------- -11/Scrapyard -10/Materials (discovered 2 exits: *Mat / [*Min]) -9/Materials (discovered 3 exits: *Mat x2 / [*Sto]) -8/Materials History --------- Turn | Location | Event 33 | -11/Scrapyard | Discovered new exit (range 15) 64 | -11/Scrapyard | Entered Materials 242 | -10/Materials | Discovered new exit (range 15) 316 | -10/Materials | Build established: Mutant 487 | -10/Materials | Discovered new exit (range 8) 513 | -10/Materials | Entered another Materials area 513 | -9/Materials | Evolved 2 slots: Propulsion x1, Utility x1 565 | -9/Materials | Discovered new exit (range 7) 695 | -9/Materials | Build established: Scavenger-Mutant 851 | -9/Materials | Discovered new exit (range 10) 1427 | -9/Materials | Discovered new exit (range 16) 1452 | -9/Materials | Identified exit to Materials 1454 | -9/Materials | Entered another Materials area 1454 | -8/Materials | Evolved 2 slots: Propulsion x1, Utility x1 1633 | -8/Materials | Garrison activated, responded to threat 1650 | -8/Materials | Core integrity fell below 50% 1674 | -8/Materials | Core integrity fell below 20% 1680 | -8/Materials | Destroyed by L-31 Rogue with Katana Last Messages --------------- 01667_ R-06 Scavenger collects Aluminum Leg. 01667_ U-05 Engineer builds a Wall. 01668_ The unstable cave ceiling collapses. 01668_ Carbon-fiber Leg crushed. 01668_ U-05 Engineer lays Concrete. 01669_ Sml. Laser destroyed. 01669_ U-05 Engineer builds a Wall. 01672_ Penetrated by Slug. 01673_ R-06 Scavenger collects Particle Gun. 01673_ Transport Network Coupler severed. 01674_ The unstable cave ceiling collapses. 01674_ U-05 Engineer lays Concrete. 01674_ R-06 Scavenger collects Lgt. Armor Plating. 01675_ U-05 Engineer lays Concrete. 01675_ Penetrated by Slug. 01676_ The unstable cave ceiling collapses. 01676_ U-05 Engineer builds a Wall. 01677_ Slug penetrates Earth. 01678_ R-06 Scavenger collects Lgt. Ion Engine. Map ----- +----------------------------------------------------+ | # """ = # ###+##########???????????????????? | | ? """ ### ### #???????????????????? | | ? """ #?# #?# ! /! #???????????????????? | | ? "T" #?# #?# !! #???????????????????? | | ###########?# #?# #???????????????????? | | ?????########+### #???????????????????? | | ?????# ###+########??????????????????????? | | ?????# # ###########?????????????????? | | ?????# """ """ #! #?????????????????? | | ?????# """ "" !+ = #?????????????????? | | ?????# """ """ # #?????????????????? | | ?????? # ####### #?????????????????? | | ?????? #######?????# #?????????????????? | | ?????# #???????????# #?????????????????? | | ?????###########???????????# #?????????????????? | | ??????????#####????????????# #?????????????????? | | ??????????? ???????????# #?????????????????? | | ???????????? ???????????# #?????????????????? | | ????????????? w ??????????# #?????????????????? | | ??????????????# ?????????# #?????????????????? | | ???????????"??# ########?# #?????????????????? | | ???????????"" # # ### #?????????????????? | | ???????????"" ; | # ##????????????????? | | ??????????????# %* a #????????????????? | | ??????????????# h! rr #????????????????? | | ??????????????# u l@%Y #????????????????? | | ??????????????# #### g#g#% #???????????????? | | ??????????????# # #= #???????????????? | | ??????????????# ??#""" # ###???????????????? | | ??????????????????#""" ! ??????????????? | | ??????????????????#""" / ?????????????? | | ??????????????????# # """" ?????????????? | | ??????????????????# #[ """" ?????????????? | | ??????????????????# # %""" ????????????? | | ??????????????????########## ! ??? ???????????? | | ???????????????????????????# ???????????????? | | ??????????????????????????? ??????????????? | | ??????????????????????????? ????????????????? | | ??????????????????????????? ????????????????? | | ??????????????????????????###+###????????????????? | | ?????????????????????????????????????????????????? | | ?????????????????????????????????????????????????? | | ?????????????????????????????????????????????????? | | ?????????????????????????????????????????????????? | | ?????????????????????????????????????????????????? | | ?????????????????????????????????????????????????? | | ?????????????????????????????????????????????????? | | ?????????????????????????????????????????????????? | | ?????????????????????????????????????????????????? | | ?????????????????????????????????????????????????? | +----------------------------------------------------+ Best States ------------- Heat Dissipation 31 Energy Generation 10 Energy Capacity 250 Matter Stores 300 Matter Capacity 300 Sight Range 16 Terrain Scan Density 10 Evasion (%) 55 Targeting Accuracy 8 Item Schematics ----------------- None Robot Schematics ------------------ None Fabricated ------------ Nothing Alien Tech Used ----------------- None Achievements -------------- Let's See Who's Tougher Challenges ------------ None Game ------ Seed LaserTerrainSystem Manual? 0 Play Time 00:31:55 Cumulative 4.8 hours Start 2024.12.30 @ 18:49:01 End 2024.12.30 @ 19:29:28 Sessions 1 Manual Loads 0 Difficulty Rogue Special Mode None Game No. 10 Rogue 10 Adventurer 0 Explorer 0 Win Type - Total 0 Types 0/0/0/0/0/0/0/0/0 Lore% 3 Gallery% 7 Achievement% 9 Wizard Run 0 Options --------- Layout 1 ASCII 0 Keyboard 0 Movement Mouse Keybinds 0 Fullscreen 1 Font 20/SmallcapsGlow Map View 50x35 Zoom Use 0% Tactical HUD 1 Map Filters NONE Filters NONE Steam 1 RUN: ae4e4e68-fbb2-4485-bcbf-d9e3fb4e38d3